bitfinex/quotes_ETHUSD_20250625
["timestamp","ask_amount","ask_price","bid_price","bid_amount"]
[1750865348926,0.3664,2413.2,2412.8,11.46978646]
[1750865349135,0.3664,2413.2,2412.8,15.61426283]
[1750865349330,0.3664,2413.2,2412.8,11.46978646]
[1750865349532,0.3664,2413.2,2412.9,4.14432424]
[1750865349853,0.3664,2413.2,2412.8,5.61432784]
[1750865350058,0.3664,2413.2,2412.8,11.46978646]
[1750865350226,4.51031184,2413.2,2412.8,11.46978646]
[1750865350553,0.3664,2413.2,2412.9,1.58216034]
[1750865350748,0.16,2413.2,2412.9,0.2072]
[1750865350960,0.16,2413.2,2412.9,4.35157596]
[1750865351136,0.16,2413.2,2413.0,4.14418001]
[1750865351322,0.16,2413.2,2413.1,4.14404707]
[1750865351524,0.16,2413.2,2413.1,4.99360937]
[1750865351755,0.16,2413.2,2413.1,0.8495623]
[1750865352423,0.16,2413.3,2413.1,0.8495623]
[1750865354059,0.16,2413.3,2413.1,4.99360032]
[1750865354855,0.16,2413.3,2413.1,0.8495623]
[1750865355840,4.3037107,2413.3,2413.1,0.8495623]
[1750865356035,4.14421881,2413.0,2412.6,0.34600953]
[1750865356242,4.14465507,2412.8,2412.6,0.34600953]
[1750865356545,0.2072,2412.8,2412.6,0.34600953]
[1750865356854,4.14473411,2412.7,2412.6,0.34600953]
[1750865357176,5.97227293,2412.7,2412.6,0.34600953]
[1750865357482,15.12263411,2412.7,2412.6,0.34600953]
[1750865357774,0.8179,2412.1,2411.6,0.2072]
[1750865358079,0.2072,2411.9,2411.5,4.3539935]
[1750865358238,0.2072,2411.9,2411.5,0.2072]
[1750865358588,0.2072,2411.8,2411.4,4.14696523]
[1750865358752,0.2072,2411.8,2411.4,0.92923675]
[1750865358952,0.16,2412.0,2411.3,10.0]
[1750865359142,9.5322,2411.9,2411.6,4.14661942]
[1750865359660,9.5322,2411.9,2411.6,4.14662345]
[1750865359979,9.5322,2411.9,2411.6,4.14658534]
[1750865360267,9.5332,2411.9,2411.5,4.35398285]
[1750865360469,9.5332,2411.9,2411.5,0.2072]
[1750865360640,0.2072,2411.9,2411.6,4.14660063]
[1750865360841,7.4762,2411.9,2411.6,4.14660063]
[1750865361058,7.4762,2411.9,2411.5,0.2072]
[1750865361269,0.2072,2411.7,2411.3,0.2072]
[1750865361477,0.2072,2411.7,2411.5,4.14665689]
[1750865362338,0.2072,2411.7,2411.4,4.14696856]
[1750865362571,0.2072,2411.7,2411.6,4.14662464]
[1750865362744,0.2072,2411.7,2411.4,4.14692524]
[1750865363067,0.16,2411.6,2411.3,4.3543315]
[1750865363272,0.16,2411.6,2411.5,4.14679659]
[1750865363670,0.16,2411.7,2411.6,4.14662464]
[1750865363872,0.16,2412.0,2411.9,4.14610887]
[1750865364440,0.16,2412.0,2411.9,4.35330887]
[1750865365873,0.16,2412.0,2411.9,4.14610887]
[1750865366073,0.16,2412.0,2411.9,5.20325155]
[1750865367095,0.16,2412.0,2411.6,4.14661782]
[1750865367276,1.1848,2412.0,2411.7,4.1464527]
[1750865367892,1.1848,2412.0,2411.7,4.14630038]
[1750865368076,1.1848,2412.0,2411.6,0.2072]
[1750865368384,1.1848,2412.0,2411.7,4.1464527]
[1750865368680,1.1848,2412.0,2411.7,4.14638022]
[1750865369084,1.1848,2412.0,2411.8,4.14625235]
[1750865369294,1.1848,2412.0,2411.9,4.14610887]
[1750865369454,1.1848,2412.0,2411.8,4.14619026]
[1750865369648,1.1848,2412.0,2411.7,4.14638022]
[1750865369649,1.1848,2412.0,2411.6,4.3537301]
[1750865369895,1.1848,2412.0,2411.6,4.35373965]
[1750865370054,0.16,2411.9,2411.6,4.35373965]
[1750865370380,0.16,2411.9,2411.6,4.35374149]
[1750865370965,0.2072,2411.6,2411.2,4.14721417]
[1750865371283,1.1605,2411.5,2411.0,4.14753526]
[1750865371458,0.2072,2411.3,2411.2,4.14731012]
[1750865371663,0.2072,2411.3,2410.9,5.16138642]
[1750865371984,0.2072,2411.3,2411.0,4.1475812]
[1750865372187,0.2072,2411.3,2410.9,0.72333864]
[1750865372401,0.16,2411.2,2410.9,0.2072]
[1750865372562,0.2072,2411.0,2410.6,0.2072]
[1750865372885,0.16,2410.9,2410.8,4.14800066]
[1750865373084,0.16,2410.9,2410.8,4.35520066]
[1750865373396,7.263,2411.3,2411.0,4.14755663]
[1750865373397,2.057,2411.3,2411.0,4.14755663]
[1750865373562,2.057,2411.3,2410.9,4.14774888]
[1750865373755,4.51416986,2411.4,2411.0,0.2072]
[1750865373960,3.95841289,2411.4,2410.5,0.31080997]
[1750865374273,0.2072,2411.1,2410.7,4.35536452]
[1750865374468,0.2072,2411.1,2410.7,0.2072]
[1750865374665,0.2072,2411.1,2410.8,4.14785261]
[1750865374855,0.2072,2411.1,2410.9,4.1477524]
[1750865375390,0.16,2411.4,2411.0,4.14765657]
[1750865375558,0.3672,2411.4,2411.1,4.14748455]
[1750865375756,2.4242,2411.4,2411.1,4.14748455]
[1750865376194,0.3672,2411.4,2411.3,4.14714054]
[1750865376398,0.16,2411.4,2411.3,4.35434054]
[1750865376604,2.217,2411.8,2411.7,4.1464527]
[1750865376766,0.16,2411.8,2411.7,4.1464527]
[1750865378175,0.16,2411.8,2411.1,8.0256]
[1750865378385,0.2072,2411.6,2411.3,4.147033]
[1750865378595,0.2072,2411.6,2411.1,0.9728]
[1750865378796,0.2072,2411.6,2411.3,4.14701535]
[1750865378985,0.2072,2411.6,2411.4,4.14683318]
[1750865379601,0.2072,2411.6,2411.2,4.14724938]
[1750865379767,0.7654,2411.9,2411.6,4.1465342]
[1750865379971,0.2072,2411.8,2411.6,4.1465342]
[1750865380279,0.2072,2411.8,2411.7,4.1464527]
[1750865381502,0.2072,2411.8,2411.4,4.35409929]
[1750865381667,0.16,2411.7,2411.4,4.35409929]
[1750865381870,0.7828,2411.6,2411.1,0.7656]
[1750865382069,0.16,2411.5,2411.4,4.14684413]
[1750865382305,0.7981,2412.2,2411.7,4.14632002]
[1750865382512,0.2072,2411.9,2411.5,4.35390992]
[1750865383170,0.2072,2411.9,2411.6,4.14661901]
[1750865383596,0.2072,2411.9,2411.6,4.14661363]
[1750865383986,0.2072,2411.9,2411.7,4.14638797]
[1750865384187,0.2072,2411.9,2411.6,4.14653354]
[1750865384381,0.2072,2411.9,2411.5,4.35390993]
[1750865384678,0.2072,2411.9,2411.7,4.14636572]
[1750865384998,0.2072,2411.9,2411.6,4.14653295]
[1750865385202,2.2642,2411.9,2411.6,4.14653295]
[1750865385389,2.2642,2411.9,2411.8,4.14628078]
[1750865385697,0.2072,2411.9,2411.8,4.14628078]
[1750865385908,1.0053,2412.2,2411.9,4.14610887]
[1750865386096,3.0623,2412.2,2411.9,4.14610887]
[1750865386905,2.2512,2412.2,2411.9,4.14608318]
[1750865387133,2.2512,2412.2,2411.9,4.14594941]
[1750865387272,2.2512,2412.2,2412.0,4.14592866]
[1750865387474,0.3672,2412.4,2412.3,4.14542138]
[1750865387678,0.16,2412.4,2412.3,4.14542138]
[1750865387891,0.16,2412.4,2412.3,4.35262138]
[1750865388071,11.5495,2412.7,2412.3,4.35262138]
[1750865388072,0.16,2412.7,2412.3,4.35262138]
[1750865388296,0.16,2412.7,2412.6,4.14490591]
[1750865388478,0.16,2412.7,2412.6,4.35210591]
[1750865389407,9.456,2413.2,2412.8,4.14449182]
[1750865389572,9.6624,2413.2,2412.6,5.61632704]
[1750865389772,0.3664,2413.2,2412.9,4.1443739]
[1750865390195,0.3664,2413.2,2412.8,0.2072]
[1750865390386,4.51030615,2413.2,2412.8,0.2072]
[1750865390587,4.14411957,2413.1,2412.5,4.14492378]
[1750865390815,0.2072,2412.9,2412.5,4.35212378]
[1750865391013,0.2072,2412.9,2412.7,4.14469104]
[1750865391195,0.2072,2412.9,2412.6,4.14483519]
[1750865391578,0.2072,2412.9,2412.5,4.7874086]
[1750865391778,0.2072,2412.9,2412.6,4.14487075]
[1750865392004,0.2072,2412.9,2412.6,4.14490591]
[1750865392206,0.2072,2412.9,2412.1,10.0]
[1750865392207,4.14490591,2412.6,2412.1,4.14570932]
[1750865392408,9.86749059,2412.5,2412.0,4.45865809]
[1750865392586,9.86749059,2412.5,2412.0,4.14584487]
[1750865392587,9.453,2412.5,2412.0,4.14584487]
[1750865392788,13.59811303,2412.5,2412.0,4.14584487]
[1750865393109,0.16,2412.5,2411.8,4.94278078]
[1750865393443,0.16,2412.5,2412.2,4.14551336]
[1750865393917,0.16,2412.5,2412.3,4.1453183]
[1750865394114,0.16,2412.5,2412.2,4.14550792]
[1750865394428,0.16,2412.5,2412.2,4.97461918]
[1750865394740,0.16,2412.5,2412.4,4.14524954]
[1750865395036,0.7774,2413.1,2412.7,4.14473411]
[1750865395223,0.7774,2413.1,2412.3,0.7965]
[1750865395224,0.7774,2413.1,2412.4,0.55]
[1750865395535,2.8204,2413.1,2412.8,4.14449261]
[1750865396144,2.8204,2413.1,2412.6,4.14482188]
[1750865396312,2.8204,2413.1,2412.7,4.14471385]
[1750865396835,2.8204,2413.1,2412.8,4.14454879]
[1750865397340,2.8204,2413.1,2412.8,4.14455635]
[1750865397519,2.8204,2413.1,2412.7,4.14464896]
[1750865397839,0.7774,2413.1,2412.7,4.14464896]
[1750865398013,2.8204,2413.1,2412.8,4.14453098]
[1750865398419,2.8204,2413.1,2412.6,4.97383856]
[1750865398420,2.8204,2413.1,2412.7,4.14465453]
[1750865398619,2.8204,2413.1,2412.8,4.14454523]
[1750865398936,2.8204,2413.1,2412.6,4.97382297]
[1750865399125,2.8204,2413.1,2412.3,0.7965]
[1750865399126,2.8204,2413.1,2412.4,0.55]
[1750865399333,2.8204,2413.1,2412.6,4.14479805]
[1750865399663,2.8204,2413.1,2412.7,4.14473249]
[1750865400212,0.7774,2413.1,2412.5,4.14507772]
[1750865400514,0.7774,2413.1,2412.8,4.14448019]
[1750865400732,0.7774,2413.1,2412.7,4.14463413]
[1750865400931,0.7774,2413.1,2412.6,0.46950777]
[1750865401133,0.7776,2412.7,2412.0,0.8324]
[1750865401339,0.16,2412.6,2412.0,4.97830381]
[1750865401518,0.16,2412.6,2412.4,4.14516232]
[1750865401950,0.16,2412.7,2412.6,4.14490591]
[1750865402253,0.16,2412.8,2412.5,0.2072]
[1750865402558,0.2072,2412.5,2412.4,4.1452132]
[1750865403240,2.043,2412.7,2412.4,4.1452132]
[1750865403415,50.2072,2412.8,2412.4,0.2072]
[1750865403616,50.2072,2412.8,2412.7,4.14473411]
[1750865403818,50.0,2412.8,2412.7,4.14473411]
[1750865404014,50.0,2412.8,2411.9,12.8229676]
[1750865404015,50.0,2412.8,2412.1,0.8025]
[1750865404238,50.0,2412.8,2411.9,4.14600829]
[1750865404239,4.14525438,2412.4,2411.9,4.14600829]
[1750865404451,0.7843,2412.2,2411.4,0.85011847]
[1750865404680,0.7583,2411.6,2410.4,4.92364621]
[1750865404868,20.772,2412.6,2409.9,2.043]
[1750865404869,0.7583,2412.2,2412.1,4.1457651]
[1750865405155,0.7583,2412.2,2411.6,0.7751]
[1750865405517,0.7583,2412.5,2412.2,4.14550909]
[1750865405754,2.8013,2412.5,2412.1,4.14568465]
[1750865405954,6.94646876,2412.5,2411.9,4.14596759]
[1750865406426,6.94646876,2412.5,2412.0,4.14591995]
[1750865406841,2.8013,2412.5,2411.7,11.49215901]
[1750865407049,4.14524954,2412.4,2411.8,4.14627232]
[1750865407252,6.9464433,2412.5,2411.8,0.97850332]
[1750865407764,9.284,2412.4,2411.8,5.1247479]
[1750865407921,10.0423,2412.5,2411.9,0.8082]
[1750865408129,10.0423,2412.5,2412.3,4.14533646]
[1750865408743,10.0423,2412.5,2412.3,4.14541274]
[1750865408967,10.0423,2412.5,2411.9,4.95419901]
[1750865409263,13.42888782,2412.7,2412.2,4.14558061]
[1750865409665,9.284,2412.7,2411.9,0.8082]
[1750865409846,4.14502501,2412.6,2412.0,4.14583453]
[1750865410046,13.42879887,2412.7,2412.1,4.14567085]
[1750865410434,4.89734764,2412.6,2412.0,4.14587612]
[1750865410763,0.7523,2412.6,2411.9,0.55]
[1750865410930,0.7523,2412.6,2412.3,4.14541574]
[1750865411453,0.7523,2412.6,2412.4,4.1451955]
[1750865411678,50.0,2412.8,2412.4,0.82907479]
[1750865411831,50.0,2412.8,2412.2,0.7649]
[1750865412147,50.0,2412.8,2412.2,4.91048217]
[1750865412328,50.0,2412.8,2412.6,4.14482343]
[1750865412528,50.0,2412.8,2412.2,4.91035039]
[1750865412740,61.38357206,2412.8,2412.3,4.14542138]
[1750865412978,61.38364974,2412.8,2412.3,4.14541876]
[1750865413131,57.239,2412.8,2411.9,11.3352]
[1750865413334,57.239,2412.8,2412.2,4.14550188]
[1750865413335,4.14475255,2412.7,2412.2,4.14550188]
[1750865413555,6.18775255,2412.7,2412.2,4.14550188]
[1750865413764,0.2072,2412.6,2412.4,4.14510157]
[1750865413965,0.2072,2412.6,2412.5,4.14507772]
[1750865414168,50.0,2412.8,2412.5,0.82904991]
[1750865414471,0.8067,2412.5,2411.9,10.0]
[1750865414759,0.2072,2412.1,2411.8,4.14612816]
[1750865415265,7.239,2412.4,2411.8,4.14612816]
[1750865415266,7.4462,2412.4,2412.3,4.14542138]
[1750865415567,0.8067,2412.5,2412.3,4.14542138]
[1750865415774,0.8067,2412.5,2412.1,0.2072]
[1750865415986,0.8067,2412.5,2412.1,4.35288639]
[1750865416174,0.8067,2412.5,2412.1,5.28349754]
[1750865416349,0.8067,2412.5,2412.1,5.2834552]
[1750865416679,0.8067,2412.5,2412.2,4.14551547]
[1750865417275,0.8067,2412.5,2412.2,4.14548297]
[1750865417680,7.238,2412.6,2412.4,4.14512567]
[1750865418176,7.238,2412.6,2412.5,4.14507772]
[1750865418389,50.0,2412.8,2412.7,4.14473411]
[1750865418686,0.802,2412.6,2412.3,0.2072]
[1750865418980,0.802,2412.6,2412.1,0.93059141]
[1750865418981,1.0092,2412.6,2412.5,4.14507772]
[1750865419662,0.2072,2412.6,2412.4,4.14517432]
[1750865419863,61.58877391,2412.8,2412.3,0.2072]
[1750865420080,61.58877391,2412.8,2412.3,4.35261911]
[1750865420276,61.3816806,2412.8,2412.1,4.14571224]
[1750865420582,4.35212767,2412.6,2412.2,0.2072]
[1750865420750,7.237,2412.5,2412.2,0.2072]
[1750865421396,7.237,2412.5,2411.8,4.14627495]
[1750865421397,4.1455181,2412.3,2411.8,4.14627495]
[1750865421559,4.14594868,2412.0,2411.5,4.90240935]
[1750865421879,7.237,2411.9,2411.6,4.35374022]
[1750865422081,7.237,2411.9,2411.7,4.14641848]
[1750865422244,7.237,2412.1,2411.8,4.14628078]
[1750865422447,7.237,2412.1,2411.9,4.14598046]
[1750865422766,7.237,2412.1,2411.8,0.62182808]
[1750865422958,0.9742,2412.3,2411.8,4.76802244]
[1750865423159,8.2102,2412.3,2411.8,4.76802244]
[1750865423360,12.14850927,2412.3,2411.8,4.14619402]
[1750865423580,0.2072,2412.1,2411.8,4.14619402]
[1750865424082,4.35308526,2412.1,2411.7,0.2072]
[1750865424295,7.236,2412.0,2411.7,0.2072]
[1750865424580,5.17398078,2411.8,2411.4,0.2072]
[1750865424983,4.14646692,2411.7,2411.4,0.2072]
[1750865425280,7.236,2411.6,2411.4,4.70019755]
[1750865425483,7.236,2411.6,2411.5,0.34616736]
[1750865425983,7.236,2411.6,2411.5,4.49296395]
[1750865426188,1.0277,2411.8,2411.6,4.14662349]
[1750865426351,7.4432,2412.0,2411.5,0.55336736]
[1750865426684,0.7765,2412.4,2411.7,0.2072]
[1750865426849,50.0,2412.8,2412.3,4.14542138]
[1750865427045,20.2512,2412.6,2412.3,4.14542138]
[1750865427249,20.2512,2412.6,2412.2,0.2072]
[1750865427484,20.2512,2412.6,2412.2,4.35265359]
[1750865427694,20.2512,2412.6,2412.2,0.2072]
[1750865427852,24.39612945,2412.6,2412.2,0.2072]
[1750865428049,24.23889481,2412.6,2411.6,10.8125]
[1750865428257,24.23889481,2412.6,2412.0,4.14593567]
[1750865428258,0.2072,2412.3,2412.0,4.14593567]
[1750865428551,0.2072,2412.3,2412.1,4.14571118]
[1750865428951,0.2072,2412.3,2411.9,4.35323973]
[1750865428952,0.2072,2412.3,2412.0,4.14589032]
[1750865429160,4.35267138,2412.3,2411.9,0.2072]
[1750865429497,12.17849817,2412.2,2411.4,0.30734393]
[1750865429665,0.2072,2412.0,2411.6,4.14651285]
[1750865429996,4.35319438,2412.0,2411.5,4.35391048]
[1750865430289,4.1461278,2411.9,2411.5,0.2072]
[1750865430487,4.35319569,2412.0,2411.5,4.35388518]
[1750865430698,0.2072,2412.0,2411.5,4.35388518]
[1750865430850,0.7595,2411.7,2411.5,0.2072]
[1750865431055,4.35389813,2411.6,2411.2,0.2072]
[1750865431254,0.2072,2411.6,2411.2,0.2072]
[1750865431486,0.2072,2411.6,2411.2,14.35450139]
[1750865431791,0.2072,2411.6,2411.4,4.14696856]
[1750865431967,0.2072,2411.6,2411.4,4.14695936]
[1750865432280,0.7595,2411.7,2411.4,10.0]
[1750865432487,0.9667,2411.7,2411.4,10.0]
[1750865432665,0.9667,2411.7,2411.4,4.1469666]
[1750865433278,4.90596439,2411.7,2411.2,10.0]
[1750865433477,0.2072,2411.5,2411.2,4.1473032]
[1750865433787,0.2072,2411.5,2411.3,4.14714054]
[1750865433989,4.14593757,2412.0,2411.4,4.14685432]
[1750865434202,0.764,2412.1,2411.1,0.7934]
[1750865434363,10.032,2412.1,2411.7,4.14634]
[1750865434558,10.032,2412.1,2411.8,4.14618373]
[1750865434755,10.032,2412.1,2411.6,4.14648429]
[1750865434959,16.05371766,2412.1,2411.5,4.14673071]
[1750865435170,4.14603589,2412.0,2411.5,4.14673071]
[1750865435456,16.05368792,2412.1,2411.6,4.14660322]
[1750865436084,16.05368792,2412.1,2411.3,10.0]
[1750865436085,4.14593698,2412.0,2411.3,10.0]
[1750865436390,4.14615817,2411.9,2411.4,4.14691093]
[1750865436793,0.76376775,2412.0,2411.3,14.14705712]
[1750865437086,0.764,2411.7,2411.3,4.14703552]
[1750865437297,0.764,2411.7,2411.4,4.14696151]
[1750865437609,0.764,2411.7,2411.2,10.0]
[1750865437788,0.764,2411.7,2411.1,0.7934]
[1750865437988,7.997,2411.7,2410.8,0.7603]
[1750865438195,4.1469018,2411.5,2411.1,10.0]
[1750865438518,2.035,2411.6,2410.8,1.07021272]
[1750865438804,2.035,2411.6,2410.9,14.14773682]
[1750865438805,4.14698535,2411.4,2410.9,14.14773682]
[1750865439204,2.035,2411.6,2410.8,1.07021272]
[1750865439501,6.18163339,2411.6,2411.1,4.14740996]
[1750865439711,7.67946673,2411.6,2410.8,10.7603]
[1750865440006,3.53283334,2411.6,2411.2,4.14730639]
[1750865440209,4.90970873,2412.0,2411.5,4.14670008]
[1750865440509,0.76376775,2412.0,2411.3,4.90742654]
[1750865440692,9.269,2412.1,2411.4,4.14696856]
[1750865441002,4.14605239,2412.0,2411.3,4.90739868]
[1750865441206,4.14605239,2412.0,2411.5,4.14678901]
[1750865441702,4.14605239,2412.0,2411.5,4.14670218]
[1750865441902,0.8274,2412.2,2411.4,0.55]
[1750865442103,4.14588128,2412.1,2411.5,4.14662612]
[1750865442320,4.14586267,2412.1,2411.3,0.7603]
[1750865442488,4.1460232,2412.0,2411.5,4.14677693]
[1750865442889,0.8151,2411.7,2411.4,4.14689736]
[1750865443097,0.8151,2411.7,2411.3,4.14706294]
[1750865443098,0.8151,2411.7,2411.3,4.14703421]
[1750865443302,2.8511,2411.7,2411.3,4.14703421]
[1750865443698,4.14689128,2411.5,2411.0,14.14759277]
[1750865443920,0.2072,2411.6,2411.1,0.2072]
[1750865444144,0.2072,2411.4,2411.2,4.1472825]
[1750865444322,0.2072,2411.4,2411.3,4.14714054]
[1750865445093,0.2072,2411.4,2411.2,4.1472279]
[1750865445289,0.2072,2411.4,2411.3,4.14714054]
[1750865445486,0.2072,2411.4,2411.2,4.14723536]
[1750865445687,0.2072,2411.4,2411.3,4.14714054]
[1750865446295,2.8511,2411.7,2411.5,4.14676627]
[1750865446296,0.2072,2411.6,2411.5,4.14676627]
[1750865446496,1.0223,2411.7,2411.4,4.14688801]
[1750865446820,1.0223,2411.7,2411.6,4.14662464]
[1750865447021,1.0223,2411.7,2411.3,0.2072]
[1750865447022,0.8285,2412.1,2411.9,4.1460224]
[1750865447223,0.7806,2412.7,2412.1,4.14572695]
[1750865447391,0.9878,2412.7,2412.6,4.14490591]
[1750865447588,50.0,2412.8,2412.7,4.14473411]
[1750865448519,50.0,2412.8,2412.7,4.35193411]
[1750865449231,0.2072,2412.7,2412.3,10.0]
[1750865449394,0.2072,2412.7,2412.6,4.14489364]
[1750865450015,0.2072,2412.7,2412.6,3.94489364]
[1750865450611,50.0,2412.8,2412.7,4.14473411]
[1750865451544,50.0,2412.8,2412.6,4.14485564]
[1750865451853,50.0,2412.8,2412.7,4.14473411]
[1750865452054,50.0,2412.8,2412.7,4.35193411]
[1750865452538,50.0,2412.8,2412.7,0.2072]
[1750865453342,50.0,2412.8,2412.7,4.35193411]
[1750865453555,50.0,2412.8,2412.7,0.2072]
[1750865454142,50.0,2412.8,2411.9,0.2072]
[1750865454143,64.23039481,2412.8,2411.9,0.2072]
[1750865454312,52.8085,2412.8,2412.2,0.8069]
[1750865454519,4.14485772,2412.7,2412.3,0.2072]
[1750865454715,4.35205772,2412.7,2412.3,0.2072]
[1750865455044,52.8085,2412.8,2412.0,10.0]
[1750865455045,4.14534387,2412.4,2412.0,10.0]
[1750865455245,4.35236748,2412.5,2412.0,10.2072]
[1750865455543,4.14525222,2412.4,2412.0,10.2072]
[1750865455726,11.62437818,2412.5,2412.0,10.2072]
[1750865455926,11.62437818,2412.5,2412.0,14.35311509]
[1750865456127,13.62080704,2412.5,2412.0,14.35311509]
[1750865456441,9.47562886,2412.5,2412.1,4.14572836]
[1750865456641,4.19489481,2412.7,2412.0,10.0]
[1750865456851,50.7795,2412.8,2412.5,4.14507772]
[1750865456852,0.2072,2412.6,2412.5,4.14507772]
[1750865457016,50.9867,2412.8,2412.6,4.14487424]
[1750865457352,50.9867,2412.8,2412.6,4.14475645]
[1750865457353,50.0,2412.8,2412.6,4.14475645]
[1750865457658,50.0,2412.8,2412.7,14.14473411]
[1750865458354,50.0,2412.8,2412.7,10.0]
[1750865458854,54.19489481,2412.8,2412.5,10.0]
[1750865459158,54.19489481,2412.8,2412.4,4.14524954]
[1750865459159,54.19489481,2412.8,2412.4,10.0]
[1750865459326,58.33956698,2412.8,2412.4,10.0]
[1750865459654,58.33956698,2412.8,2412.3,4.14529936]
[1750865459850,7.266,2412.7,2412.3,4.14529936]
[1750865460254,10.14646741,2412.7,2412.2,10.0]
[1750865460761,10.14646741,2412.7,2412.5,4.14497175]
[1750865461065,50.0,2412.8,2412.5,4.14497175]
[1750865461425,50.0,2412.8,2412.6,4.14490016]
[1750865461626,57.256,2412.8,2412.6,4.14490016]
[1750865461826,57.256,2412.8,2412.5,4.14501861]
[1750865462037,57.256,2412.8,2412.2,10.0]
[1750865462256,57.256,2412.8,2412.4,4.14517193]
[1750865462456,50.0,2412.8,2412.5,4.14502053]
[1750865462865,50.0,2412.8,2412.4,0.7612]
[1750865463063,50.0,2412.8,2412.6,4.14474009]
[1750865463268,50.0,2412.8,2412.5,4.1449545]
[1750865463444,50.0,2412.8,2412.6,4.14490144]
[1750865463961,50.0,2412.8,2412.7,4.14473411]
[1750865464164,50.0,2412.8,2412.7,15.69869492]
[1750865467663,50.0,2412.8,2412.7,15.90589492]
[1750865468240,50.0,2412.8,2412.7,17.25439492]
[1750865468440,50.0,2412.8,2412.7,16.70439492]
[1750865468864,50.0,2412.8,2412.7,15.15043411]
[1750865469066,50.16,2412.8,2412.7,14.35193411]
[1750865469243,50.16,2412.8,2412.7,21.57893411]
[1750865469439,47.99164062,2412.8,2412.7,22.88723411]
[1750865469661,31.02882216,2412.8,2412.7,22.88723411]
[1750865469872,27.88998117,2412.8,2412.7,31.48622011]
[1750865470072,27.88998117,2412.8,2412.7,22.88723411]
[1750865470257,27.88998117,2412.8,2412.7,35.14631043]
[1750865470871,27.88998117,2412.8,2412.7,15.66023411]
[1750865471047,27.88998117,2412.8,2412.7,17.64074492]
[1750865471252,27.88998117,2412.8,2412.7,24.86674492]
[1750865475083,28.08998117,2412.8,2412.7,24.86674492]
[1750865475859,20.3629636,2412.8,2412.7,32.05542892]
[1750865476049,17.26279453,2412.8,2412.7,31.09691592]
[1750865476253,17.26279453,2412.8,2412.7,24.86674492]
[1750865476781,16.02279453,2412.8,2412.7,24.86674492]
[1750865477085,7.20904095,2412.8,2412.7,28.83152092]
[1750865477949,6.64004095,2412.8,2412.7,17.64074492]
[1750865478180,6.64004095,2412.8,2412.7,24.31574492]
[1750865478364,6.64004095,2412.8,2412.7,24.86574492]
[1750865479168,6.44004095,2412.8,2412.7,24.66574492]
[1750865479368,6.44004095,2412.8,2412.7,25.01174011]
[1750865480987,7.26394095,2412.8,2412.7,0.55319519]
[1750865481191,11.56850328,2412.8,2412.7,0.34599519]
[1750865481377,7.42394095,2412.8,2412.7,0.34599519]
[1750865481687,11.56850328,2412.8,2412.7,0.34599519]
[1750865482455,7.42394095,2412.8,2412.4,4.14510574]
[1750865482662,0.2072,2412.7,2412.3,4.14531141]
[1750865482988,0.2072,2412.7,2412.2,7.4312]
[1750865483290,7.42394095,2412.8,2412.7,4.14473411]
[1750865483886,7.42394095,2412.8,2412.4,11.5774268]
[1750865484069,7.42394095,2412.8,2412.6,0.2072]
[1750865484269,7.42394095,2412.8,2412.6,4.35209734]
[1750865484785,6.60004095,2412.8,2412.6,4.35208606]
[1750865484987,6.60004095,2412.8,2412.6,0.2072]
[1750865485291,7.48796505,2412.8,2412.5,4.14506014]
[1750865485591,6.80724095,2412.8,2412.4,4.35237321]
[1750865485757,10.95188578,2412.8,2412.4,7.4322]
[1750865485954,0.7663,2412.7,2412.4,0.2072]
[1750865486254,0.7663,2412.7,2412.4,4.14521689]
[1750865486461,0.2072,2412.7,2412.4,4.14524954]
[1750865486672,6.60004095,2412.8,2412.6,4.14478016]
[1750865487260,6.60004095,2412.8,2412.7,4.14473411]
[1750865487912,6.60004095,2412.8,2412.7,4.35193411]
[1750865488506,6.44004095,2412.8,2412.7,14.69473411]
[1750865488693,6.44004095,2412.8,2412.7,15.52133411]
[1750865489012,6.44004095,2412.8,2412.7,24.22433411]
[1750865489904,4.52618723,2413.9,2412.7,24.22433411]
[1750865489905,1.0491913,2413.9,2413.8,4.1428453]
[1750865490086,0.2234913,2413.9,2413.8,4.1428453]
[1750865490880,0.2234913,2413.9,2413.8,5.69392897]
[1750865492020,0.2234913,2413.9,2413.8,4.1428453]
[1750865493103,0.2234913,2413.9,2413.6,4.1430919]
[1750865493292,0.2234913,2413.9,2413.6,11.3670919]
[1750865493501,0.2234913,2413.9,2413.7,4.14299195]
[1750865494298,0.2234913,2413.9,2413.8,21.9168453]
[1750865495292,0.22131536,2413.9,2413.8,21.9168453]
[1750865495491,0.22131536,2413.9,2413.8,4.1428453]
[1750865495690,0.22131536,2413.9,2413.8,11.3658453]
[1750865495897,0.22131536,2413.9,2413.7,14.14292651]
[1750865496097,0.22131536,2413.9,2413.8,4.1428453]
[1750865496722,0.22131536,2413.9,2413.8,4.6928453]
[1750865496880,0.22131536,2413.9,2413.8,12.1674453]
[1750865497387,0.22131536,2413.9,2413.5,4.6933369]
[1750865497388,0.22131536,2413.9,2413.5,7.223]
[1750865497895,0.22131536,2413.9,2413.7,4.14301694]
[1750865498297,0.22131536,2413.9,2413.6,4.14318859]
[1750865498499,0.22131536,2413.9,2413.8,4.1428453]
[1750865498917,0.22131536,2413.9,2413.7,4.34935203]
[1750865499497,0.22131536,2413.9,2413.7,0.2064]
[1750865499887,0.22131536,2413.9,2413.4,7.222]
[1750865499888,4.14296486,2413.8,2413.4,7.222]
[1750865500218,0.7707,2413.7,2413.5,0.2064]
[1750865500385,0.7707,2413.7,2413.3,4.35010328]
[1750865500590,0.7707,2413.7,2413.3,0.2064]
[1750865500915,0.7707,2413.7,2413.4,4.14343726]
[1750865501093,0.7707,2413.7,2413.6,4.14318859]
[1750865501299,0.2064,2413.8,2413.6,4.14318859]
[1750865501498,0.2064,2413.8,2413.6,4.14310047]
[1750865502687,0.99201536,2413.9,2413.7,4.14301694]
[1750865503321,0.99201536,2413.9,2413.6,4.34950355]
[1750865503518,0.99201536,2413.9,2413.6,0.2064]
[1750865505626,4.14288941,2413.8,2413.6,0.2064]
[1750865505812,0.2064,2413.8,2413.4,7.221]
[1750865506015,0.2064,2413.8,2413.4,11.36452291]